bitfinex-derivatives/quotes_SOLF0:USTF0_20250820
["timestamp","ask_amount","ask_price","bid_price","bid_amount"]
[1755702273750,147.32,182.34,182.24,2.83]
[1755702274150,147.32,182.34,182.26,5.4865]
[1755702274350,147.32,182.34,182.24,2.83]
[1755702274648,147.32,182.34,182.27,5.4861]
[1755702275250,146.98,182.34,182.27,5.4861]
[1755702275452,2.46,182.35,182.24,2.83]
[1755702275653,146.9,182.34,182.24,2.83]
[1755702276156,146.88,182.36,182.24,2.83]
[1755702276351,2.46,182.35,182.24,2.83]
[1755702276956,146.8,182.36,182.32,5.4846]
[1755702277249,149.26,182.36,182.32,5.4846]
[1755702277452,2.46,182.41,182.34,5.4839]
[1755702277755,146.74,182.4,182.28,2.83]
[1755702278152,2.46,182.41,182.28,2.83]
[1755702278452,146.72,182.4,182.28,2.83]
[1755702279349,2.46,182.39,182.28,2.83]
[1755702279946,2.46,182.39,182.3,5.4852]
[1755702280152,2.46,182.39,182.28,2.83]
[1755702280353,2.46,182.39,182.33,5.4843]
[1755702280555,2.46,182.39,182.28,2.83]
[1755702281057,146.72,182.4,182.34,5.484]
[1755702281257,2.46,182.38,182.28,2.83]
[1755702283157,2.46,182.38,182.3,5.4853]
[1755702283353,146.36,182.38,182.28,2.83]
[1755702284350,148.82,182.38,182.28,2.83]
[1755702284960,146.36,182.38,182.28,2.83]
[1755702285252,146.36,182.38,182.32,5.4846]
[1755702285459,2.46,182.47,182.33,2.83]
[1755702285654,2.46,182.45,182.33,2.83]
[1755702285855,146.04,182.44,182.33,2.83]
[1755702286455,148.5,182.44,182.33,2.83]
[1755702286856,148.5,182.44,182.37,5.4831]
[1755702287154,2.46,182.43,182.33,2.83]
[1755702288954,2.46,182.43,182.38,5.4829]
[1755702289155,2.46,182.43,182.33,2.83]
[1755702289651,2.46,182.43,182.36,5.4836]
[1755702289861,2.46,182.43,182.33,2.83]
[1755702290558,148.38,182.43,182.33,2.83]
[1755702291256,2.46,182.42,182.33,8.3143]
[1755702291459,2.46,182.42,182.29,2.83]
[1755702292054,7.08324761,182.49,182.29,4.7618604]
[1755702292358,149.19,182.48,182.34,2.83]
[1755702292858,146.72,182.47,182.34,2.83]
[1755702293051,21.2818604,182.5,182.34,2.83]
[1755702293261,371.07,182.51,182.36,2.83]
[1755702293456,371.07,182.51,182.37,4.7618604]
[1755702293762,371.07,182.51,182.43,5.4813]
[1755702293958,368.62,182.51,182.43,2.83]
[1755702294357,368.62,182.51,182.47,5.4801]
[1755702294555,146.62,182.52,182.47,8.3101]
[1755702295062,146.62,182.52,182.47,5.4801]
[1755702295362,146.44,182.54,182.48,5.48]
[1755702296161,146.44,182.54,182.47,5.4802]
[1755702296358,146.44,182.54,182.46,2.83]
[1755702296559,146.44,182.54,182.46,7.5918604]
[1755702296759,2.45,182.55,182.46,7.5918604]
[1755702296956,146.48,182.59,182.46,7.5918604]
[1755702297158,148.92,182.59,182.51,5.4789]
[1755702297564,2.44,182.58,182.46,2.83]
[1755702298665,2.44,182.58,182.5,5.4791]
[1755702299065,2.44,182.58,182.5,5.4793]
[1755702299362,370.98,182.61,182.49,3.07]
[1755702299567,146.5,182.59,182.49,3.07]
[1755702299964,146.38,182.59,182.49,3.07]
[1755702300259,2.44,182.58,182.49,3.07]
[1755702300864,146.34,182.57,182.49,3.07]
[1755702301364,2.44,182.56,182.39,10.9648]
[1755702301567,2.44,182.56,182.42,3.07]
[1755702302265,2.44,182.56,182.48,5.4797]
[1755702302469,2.44,182.56,182.43,3.07]
[1755702302766,146.88,182.57,182.53,5.4783]
[1755702302960,149.32,182.57,182.49,3.07]
[1755702303566,149.32,182.57,182.43,3.07]
[1755702304064,146.7,182.59,182.49,3.07]
[1755702304369,146.7,182.59,182.42,4.7618604]
[1755702304370,146.78,182.64,182.5,4.7618604]
[1755702304569,2.44,182.67,182.55,4.7618604]
[1755702304760,146.82,182.7,182.56,3.07]
[1755702305071,368.34,182.71,182.56,3.07]
[1755702305466,368.34,182.71,182.61,5.4758]
[1755702305768,368.34,182.71,182.56,3.07]
[1755702305967,2.44,182.7,182.56,3.07]
[1755702306569,515.12,182.71,182.64,5.4752]
[1755702306773,515.12,182.71,182.62,3.07]
[1755702306774,2.44,182.75,182.62,3.07]
[1755702307072,146.78,182.74,182.62,3.07]
[1755702307262,2.44,182.75,182.62,3.07]
[1755702307461,2.44,182.75,182.63,4.7618604]
[1755702307662,149.7,182.79,182.64,3.07]
[1755702307863,2.44,182.78,182.64,3.07]
[1755702308460,4.7618604,182.78,182.64,3.07]
[1755702308665,147.26,182.79,182.58,3.07]
[1755702308666,2.44,182.73,182.58,3.07]
[1755702308872,2.44,182.69,182.57,118.08817702]
[1755702309167,370.68,182.73,182.58,3.07]
[1755702309369,2.44,182.71,182.59,3.07]
[1755702309674,4.7618604,182.69,182.57,118.08817702]
[1755702309873,370.68,182.73,182.58,3.07]
[1755702310074,370.68,182.73,182.58,7.8318604]
[1755702310275,0.95273295,182.78,182.63,3.07]
[1755702310579,152.86,182.77,182.72,5.4725]
[1755702310766,150.42,182.77,182.68,3.07]
[1755702310961,2.44,182.76,182.62,7.8318604]
[1755702311173,2.44,182.76,182.62,3.07]
[1755702311566,0.95273295,182.78,182.7,3.07]
[1755702312171,0.95273295,182.78,182.58,62.0]
[1755702312172,3.39273295,182.78,182.66,3.07]
[1755702312572,3.39273295,182.78,182.63,4.7618604]
[1755702312573,3.39273295,182.78,182.74,5.4721]
[1755702312771,3.39273295,182.78,182.7,3.07]
[1755702313069,0.95273295,182.78,182.72,3.07]
[1755702313568,0.95273295,182.78,182.77,8.5413]
[1755702313964,0.95273295,182.78,182.77,3.07]
[1755702314469,2.44,182.84,182.72,3.07]
[1755702315575,150.5,182.88,182.72,3.07]
[1755702315775,2.44,182.87,182.72,3.07]
[1755702317778,2.44,182.87,182.77,3.07]
[1755702318575,2.43,182.93,182.77,3.07]
[1755702318768,152.69,182.93,182.77,3.07]
[1755702318970,2.43,182.93,182.77,3.07]
[1755702319269,2.43,182.93,182.73,10.9449]
[1755702319472,2.43,182.93,182.8,3.07]
[1755702320274,368.02,182.94,182.82,5.4697]
[1755702320275,2.43,182.92,182.82,5.4697]
[1755702320472,2.43,182.92,182.8,3.07]
[1755702320972,2.43,182.92,182.81,5.4701]
[1755702321166,2.43,182.92,182.73,3.07]
[1755702321370,2.43,182.88,182.73,3.07]
[1755702321571,152.49,182.88,182.73,3.07]
[1755702321875,150.06,182.87,182.73,3.07]
[1755702322072,2.43,182.88,182.73,3.07]
[1755702322473,7.1918604,182.88,182.73,3.07]
[1755702322673,4.7618604,182.84,182.73,3.07]
[1755702322872,2.43,182.87,182.71,3.07]
[1755702323073,150.12,182.86,182.71,3.07]
[1755702323272,368.97206829,182.94,182.83,5.4692]
[1755702323474,2.43,182.92,182.75,3.07]
[1755702323775,2.43,182.92,182.85,5.4687]
[1755702323975,368.97206829,182.94,182.8,3.07]
[1755702324371,2.43,182.93,182.8,3.07]
[1755702325473,2.43,182.93,182.87,5.4682]
[1755702325670,2.43,182.93,182.8,3.07]
[1755702326369,7.1918604,182.93,182.83,5.4694]
[1755702326579,2.43,182.88,182.75,3.04]
[1755702327075,2.43,182.88,182.79,3.04]
[1755702327273,2.43,182.93,182.79,3.04]
[1755702327474,2.43,183.08,182.8,3.04]
[1755702327678,2.43,183.01,182.84,3.04]
[1755702327978,517.96,183.07,182.84,3.04]
[1755702327979,2.43,182.99,182.84,3.04]
[1755702328279,2.43,182.97,182.84,3.04]
[1755702328974,150.2,182.96,182.88,5.4679]
[1755702329281,150.2,182.96,182.8,3.04]
[1755702329282,2.43,182.95,182.8,3.04]
[1755702329675,4.7618604,182.95,182.8,3.04]
[1755702329875,2.43,182.94,182.8,3.04]
[1755702330275,152.49,182.95,182.8,3.04]
[1755702330471,2.43,182.95,182.8,3.04]
[1755702330675,152.47,182.95,182.86,5.4682]
[1755702330873,152.47,182.95,182.8,3.04]
[1755702331083,2.43,182.95,182.8,3.04]
[1755702331276,2.43,182.95,182.86,3.04]
[1755702331477,150.04,182.97,182.86,3.04]
[1755702331876,152.47,182.97,182.86,3.04]
[1755702332181,152.47,182.97,182.91,5.4668]
[1755702332385,152.47,182.97,182.86,3.04]
[1755702332683,2.43,182.97,182.92,5.4663]
[1755702332869,2.43,182.97,182.86,3.04]
[1755702333675,2.43,182.97,182.93,5.4662]
[1755702333879,2.43,182.97,182.86,3.04]
[1755702334277,152.23,183.01,182.92,5.4663]
[1755702334579,152.23,183.01,182.86,3.04]
[1755702334879,152.23,183.01,182.9,3.04]
[1755702335276,2.43,183.01,182.9,3.04]
[1755702336379,2.43,183.01,182.86,3.04]
[1755702336576,2.43,182.98,182.86,3.04]
[1755702336979,2.43,182.94,182.81,3.04]
[1755702337280,151.89,182.94,182.81,3.04]
[1755702337780,151.89,182.94,182.76,3.04]
[1755702337781,2.43,182.93,182.76,3.04]
[1755702337982,4.7618604,182.91,182.76,3.04]
[1755702338281,2.43,182.9,182.76,3.04]
[1755702338879,533.48,182.94,182.69,3.04]
[1755702338880,2.43,182.82,182.69,3.04]
[1755702340082,4.7618604,182.82,182.69,3.04]
[1755702340381,2.43,182.77,182.64,3.04]
[1755702340883,7.1918604,182.77,182.64,8.5147]
[1755702341084,2.43,182.77,182.64,8.5147]
[1755702341284,2.43,182.77,182.72,5.4725]
[1755702341482,2.43,182.77,182.64,4.7618604]
[1755702341483,367.5,182.81,182.68,3.04]
[1755702341778,369.93,182.81,182.75,5.4715]
[1755702341978,367.5,182.81,182.72,3.04]
[1755702343186,2.43,182.85,182.72,3.04]
[1755702343386,149.62,182.88,182.75,3.04]
[1755702343980,2.43,182.87,182.7,3.04]
[1755702344587,149.68,182.86,182.7,3.04]
[1755702344988,149.68,182.86,182.74,3.04]
[1755702345279,2.43,182.85,182.74,3.04]
[1755702345480,2.43,182.85,182.66,3.04]
[1755702346076,2.43,182.82,182.7,5.4731]
[1755702346281,2.43,182.82,182.66,3.04]
[1755702347186,2.43,182.82,182.75,5.4715]
[1755702347383,2.43,182.82,182.66,3.04]
[1755702347588,2.43,182.82,182.71,5.4726]
[1755702347788,2.43,182.82,182.66,3.04]
[1755702348179,2.43,182.82,182.7,5.4729]
[1755702348380,2.43,182.82,182.66,3.04]
[1755702348785,2.43,182.82,182.7,3.04]
[1755702349283,2.43,182.82,182.75,5.4714]
[1755702349685,2.43,182.82,182.7,3.04]
[1755702349986,2.43,182.82,182.74,5.4719]
[1755702350186,2.43,182.82,182.7,3.04]
[1755702350688,2.43,182.82,182.74,5.4717]
[1755702350883,367.58,182.91,182.7,3.04]
[1755702351089,2.43,182.86,182.74,3.04]
[1755702351886,149.32,182.9,182.74,3.04]
[1755702352095,149.32,182.9,182.81,5.4696]
[1755702352387,149.32,182.9,182.78,3.04]
[1755702353096,2.43,182.89,182.75,3.04]
[1755702353982,2.43,182.89,182.83,5.4692]
[1755702354185,2.43,182.89,182.79,3.04]
[1755702354491,367.58,182.91,182.79,3.04]
[1755702355085,367.58,182.91,182.76,3.04]
[1755702355292,151.59,182.94,182.79,8.02095223]
[1755702355494,151.59,182.94,182.85,5.4684]
[1755702355692,151.59,182.94,182.8,3.04]
[1755702356901,151.59,182.94,182.88,5.4676]
[1755702357195,151.59,182.94,182.83,2.89]
[1755702357395,367.64,183.01,182.83,2.89]
[1755702357597,2.44,182.98,182.83,2.89]
[1755702357799,151.8,182.98,182.83,2.89]
[1755702358194,151.78,182.98,182.83,2.89]
[1755702358399,2.44,182.98,182.91,5.4667]
[1755702358591,151.78,182.98,182.86,2.89]
[1755702359096,151.78,182.98,182.88,5.4675]
[1755702359305,151.78,182.98,182.86,2.89]
[1755702359694,2.44,182.97,182.86,2.89]
[1755702359993,2.44,182.97,182.88,5.4677]
[1755702360190,2.44,182.97,182.86,2.89]
[1755702360394,2.44,182.97,182.79,2.89]
[1755702361393,2.44,182.97,182.8,2.89]
[1755702361601,149.5,182.99,182.89,2.89]
[1755702361795,2.44,182.98,182.89,2.89]
[1755702361993,2.44,182.98,182.92,5.4665]
[1755702362199,2.44,182.98,182.89,2.89]
[1755702363102,2.44,182.98,182.93,5.4661]
[1755702363299,2.44,182.98,182.89,2.89]
[1755702364697,2.44,182.98,182.85,2.89]
[1755702365697,367.64,183.01,182.85,2.89]
[1755702365998,367.64,183.01,182.96,2.89]
[1755702366404,367.64,183.01,182.9,2.89]
[1755702367404,367.64,183.01,182.95,5.4654]
[1755702367605,517.12,183.01,182.9,2.89]
[1755702367901,367.64,183.01,182.95,5.4655]
[1755702368199,367.64,183.01,182.93,2.89]
[1755702368597,367.64,183.01,182.86,4.73121523]
[1755702368598,2.44,183.0,182.88,2.89]
[1755702369197,2.44,183.0,182.93,5.4661]
[1755702369402,2.44,183.08,182.9,4.73121523]
[1755702369700,2.44,183.06,182.91,2.89]
[1755702370609,149.08,183.05,182.97,5.4649]
[1755702370810,149.08,183.05,182.91,2.89]
[1755702371207,149.08,183.05,182.97,5.4649]
[1755702371403,149.08,183.05,182.91,2.89]
[1755702371611,2.44,183.04,182.91,2.89]
[1755702371808,148.98,183.03,182.91,2.89]
[1755702372008,2.44,183.08,182.91,2.89]
[1755702372314,149.04,183.07,182.91,2.89]
[1755702373202,2.44,183.08,182.93,2.89]
[1755702373404,2.44,183.06,182.93,2.89]
[1755702373802,2.44,183.06,182.96,5.4651]
[1755702374005,2.44,183.06,182.93,2.89]
[1755702374807,149.14,183.05,182.93,2.89]
[1755702375305,151.7,183.06,183.0,5.464]
[1755702375506,151.7,183.06,182.89,4.73121523]
[1755702375507,151.7,183.06,182.97,2.89]
[1755702375915,2.44,183.06,182.99,5.4644]
[1755702376115,2.44,183.06,182.97,2.89]
[1755702376116,151.68,183.06,182.97,2.89]
[1755702376307,2.44,183.06,182.97,2.89]
[1755702376510,151.62,183.06,182.97,8.3548]
[1755702376710,2.44,183.06,182.97,2.89]
[1755702376917,151.58,183.06,182.97,2.89]
[1755702377718,151.58,183.06,182.97,8.355]
[1755702378018,151.58,183.06,182.97,2.89]
[1755702378320,2.44,183.06,182.97,2.89]
[1755702379120,2.44,183.06,182.93,2.89]
[1755702379615,149.06,183.05,182.93,2.89]
[1755702379812,149.06,183.05,183.0,5.4639]
[1755702380011,149.06,183.05,182.97,2.89]
[1755702380621,149.06,183.05,182.9,2.89]
[1755702380815,2.44,183.06,182.9,2.89]
[1755702381015,2.44,183.06,182.98,5.4647]
[1755702381219,2.44,183.06,182.96,2.89]
[1755702382028,7.17121523,183.06,182.91,2.89]
[1755702382222,2.44,183.05,182.95,5.4656]
[1755702382522,2.44,183.05,182.91,2.89]
[1755702383119,7.17121523,183.05,182.91,2.89]
[1755702383318,7.17121523,183.05,182.86,4.73121523]
[1755702383319,2.44,183.05,182.94,2.89]
[1755702383713,149.14,183.04,182.94,2.89]
[1755702384316,2.44,183.05,183.0,5.4639]
[1755702384522,2.44,183.05,183.0,8.3539]
[1755702384721,4.73121523,183.07,183.0,2.89]
[1755702384921,4.73121523,183.07,182.95,2.89]
[1755702384922,2.44,183.07,182.95,2.89]
[1755702386032,2.44,183.07,183.0,5.464]
[1755702386233,2.44,183.07,182.98,3.1]
[1755702386827,372.19121523,183.11,182.98,3.1]
[1755702386828,149.02,183.09,182.98,3.1]
[1755702387031,149.02,183.09,183.02,5.4634]
[1755702387330,2.43,183.08,182.98,3.1]
[1755702387827,2.43,183.08,183.0,5.4639]
[1755702388034,2.43,183.08,182.98,3.1]
[1755702388334,367.46,183.11,182.98,3.1]
[1755702388529,528.0,183.2,182.99,4.73121523]
[1755702388530,149.46,183.14,182.99,4.73121523]
[1755702388729,149.44,183.15,183.04,3.1]
[1755702388930,2.43,183.16,183.04,3.1]
[1755702389130,367.26,183.21,183.04,3.1]
[1755702389325,367.26,183.21,183.08,3.1]
[1755702389925,2.43,183.2,183.08,3.1]
[1755702390128,2.43,183.18,183.04,3.1]
[1755702390330,7.16121523,183.18,183.04,3.1]
[1755702390534,2.43,183.18,183.04,3.1]
[1755702390832,149.84,183.19,183.07,3.1]
[1755702391130,517.16,183.21,183.07,3.1]
[1755702391632,367.26,183.21,183.07,3.1]
[1755702391834,367.26,183.21,183.11,3.1]
[1755702392642,149.74,183.25,183.11,3.1]
[1755702392826,149.72,183.26,183.17,5.4589]
[1755702393028,2.43,183.27,183.16,3.1]
[1755702393228,149.84,183.26,183.16,3.1]
[1755702393635,152.25,183.27,183.16,3.1]
[1755702393833,152.25,183.27,183.17,5.4591]
[1755702394132,151.91841357,183.27,183.16,3.1]
[1755702394334,151.87841357,183.27,183.16,3.1]
[1755702395336,2.09841357,183.27,183.16,3.1]
[1755702395533,149.76,183.29,183.2,5.458]
[1755702395835,130.67641745,183.31,183.16,3.1]
[1755702396030,149.76,183.3,183.21,3.1]
[1755702396230,151.86,183.3,183.21,3.1]
[1755702396425,151.86,183.3,183.23,5.4571]
[1755702396630,2.1,183.3,183.21,3.1]
[1755702398334,517.48,183.32,183.21,3.1]
[1755702398636,517.48,183.32,183.24,5.457]
[1755702398840,2.1,183.41,183.24,3.1]
[1755702399024,150.44,183.4,183.27,3.1]
[1755702399625,150.44,183.4,183.31,5.4548]
[1755702399829,2.1,183.41,183.27,3.1]
[1755702400028,2.1,183.41,183.3,4.73121523]
[1755702400338,369.14,183.48,183.35,3.1]
[1755702400632,150.46,183.47,183.35,3.1]
[1755702400838,150.46,183.47,183.38,5.4528]
[1755702401036,150.42,183.47,183.35,3.1]
[1755702401439,369.14,183.48,183.35,7.83121523]
[1755702401631,369.14,183.48,183.36,3.1]
[1755702401937,150.42,183.51,183.36,3.1]
[1755702402232,150.38,183.5,183.36,3.1]
[1755702402431,2.1,183.51,183.36,3.1]
[1755702402637,150.34,183.5,183.36,3.1]
[1755702402827,528.0,183.64,183.3,10.91]
[1755702403031,16.52,183.77,183.41,3.1]
[1755702403032,2.1,183.59,183.41,3.1]
[1755702403434,2.1,183.59,183.48,3.1]
[1755702403933,2.1,183.59,183.5,5.4493]
[1755702404241,152.28,183.59,183.5,5.4493]
[1755702404426,152.28,183.59,183.48,8.5496]
[1755702404627,2.1,183.59,183.48,3.1]
[1755702405033,150.22,183.58,183.51,5.4487]
[1755702405228,16.52,183.8,183.34,122.09842267]
[1755702405229,2.1,183.8,183.52,4.73121523]
[1755702405433,2.1,183.74,183.56,7.83121523]
[1755702405637,2.1,183.74,183.57,3.1]
[1755702405835,2.1,183.74,183.56,4.73121523]
[1755702405836,2.1,183.74,183.62,3.1]
[1755702406042,152.88,183.74,183.62,3.1]
[1755702406240,366.8,183.81,183.66,3.1]
[1755702406430,151.3,183.8,183.66,3.1]
[1755702406628,366.8,183.81,183.66,3.1]
[1755702406828,366.8,183.81,183.63,62.0]
[1755702406829,2.1,183.84,183.7,3.1]
[1755702407033,2.1,183.84,183.72,5.4425]
[1755702407340,151.26,183.85,183.7,7.83121523]
[1755702407341,151.26,183.85,183.7,4.73121523]
[1755702407540,2.1,183.84,183.71,3.1]
[1755702408033,2.1,183.84,183.67,4.73121523]
[1755702408436,2.1,183.84,183.68,3.1]
[1755702408636,2.1,183.82,183.68,3.1]
[1755702408835,2.1,183.81,183.6,3.1]
[1755702409346,2.1,183.71,183.54,3.1]
[1755702409541,368.46,183.71,183.56,3.1]
[1755702410135,366.36,183.71,183.55,7.93627562]
[1755702410336,366.36,183.71,183.58,3.1]
[1755702410843,0.94717074,183.9,183.49,366.64]
[1755702410844,366.36,183.81,183.65,7.93627562]
[1755702411142,366.36,183.81,183.71,3.1]
[1755702411834,2.1,183.8,183.71,3.1]
[1755702412034,2.1,183.86,183.68,7.93627562]
[1755702412238,7.93627562,183.94,183.69,3.1]
[1755702412437,155.3,183.93,183.74,3.1]
[1755702412743,2.1,183.91,183.74,3.1]
[1755702413247,2.1,183.95,183.75,3.1]
[1755702414143,0.03508643,183.87,183.8,3.1]
[1755702414345,0.1,184.0,183.85,3.1]
[1755702414839,0.1,184.0,183.77,161.39627562]
[1755702414840,0.1,184.0,183.88,3.1]
[1755702415650,0.1,184.0,183.92,0.03654986]
[1755702416240,0.1,184.0,183.92,2.96654986]
[1755702417239,2.08,184.12,183.93,2.93]
[1755702417941,5.4312,184.11,183.93,2.93]
[1755702418141,63.21056671,184.62,184.01,0.03931334]
[1755702418336,340.72578935,184.18,184.02,2.93]
[1755702418539,340.72578935,184.18,183.96,2.93]
[1755702418540,2.08,184.12,183.96,2.93]
[1755702418738,154.06,184.17,183.96,2.93]
[1755702418939,154.06,184.17,184.08,0.03867016]
[1755702419140,5.4297,184.17,184.08,0.03867016]
[1755702419341,2.08,184.16,184.08,0.03867016]
[1755702419640,2.08,184.16,183.89,366.04]
[1755702419641,2.04,184.14,183.95,2.93]
[1755702420242,2.04,184.14,183.92,7.93627562]
[1755702420243,495.32578935,184.18,184.03,2.93]
[1755702420738,2.04,184.14,183.98,2.93]
[1755702421648,2.04,184.14,183.92,7.93627562]
[1755702421649,2.04,184.12,183.92,2.93]
[1755702421847,2.04,184.12,183.9,2.93]
[1755702422048,2.04,184.12,183.93,2.93]
[1755702422244,5.4321,184.08,183.97,5.4351]
[1755702422446,158.52,184.09,183.93,2.93]
[1755702423246,2.04,184.09,183.99,5.4346]
[1755702423543,2.04,184.09,183.93,2.93]
[1755702423942,158.76,184.09,183.93,2.93]
[1755702424251,2.04,184.12,183.93,2.93]
[1755702424446,2.04,184.12,183.94,7.93627562]
[1755702424650,2.04,184.12,183.95,2.93]
[1755702425242,2.04,184.19,183.98,2.93]
[1755702425443,2.04,184.16,183.98,2.93]
[1755702425651,2.04,184.16,183.99,2.93]
[1755702426149,2.04,184.21,184.03,2.93]
[1755702426347,2.04,184.21,184.08,2.93]
[1755702426551,366.40560078,184.22,184.08,2.93]
[1755702426750,0.94560078,184.22,184.08,2.93]
[1755702426948,0.94560078,184.22,184.2,5.4286]
[1755702427252,0.94560078,184.22,184.14,2.93]
[1755702427652,0.94560078,184.22,184.09,2.93]
[1755702427850,2.98560078,184.22,184.09,2.93]
[1755702428355,0.94560078,184.22,184.09,2.93]
[1755702428551,0.94560078,184.22,184.21,5.4283]
[1755702428853,0.94560078,184.22,184.16,2.93]
[1755702429057,0.94560078,184.22,184.21,5.4283]
[1755702429249,0.94560078,184.22,184.16,2.93]
[1755702429648,2.04,184.37,184.19,2.93]
[1755702429954,2.04,184.43,184.25,2.93]
[1755702430144,2.04,184.43,184.18,365.34]
[1755702430145,2.04,184.43,184.29,7.93627562]
[1755702430346,2.04,184.43,184.18,365.34]
[1755702430347,2.04,184.43,184.28,7.93627562]
[1755702430651,2.04,184.43,184.29,62.0]
[1755702430855,2.04,184.43,184.27,2.93]
[1755702431053,5.4227,184.4,184.34,0.03919431]
[1755702431254,2.04,184.43,184.18,365.34]
[1755702431255,2.04,184.43,184.19,2.93]
[1755702431450,174.26,184.48,184.19,2.93]
[1755702431451,2.0,184.4,184.19,2.93]
[1755702431645,2.0,184.38,184.19,2.93]
[1755702432054,5.4247,184.34,184.22,5.4279]
[1755702432358,2.0,184.36,184.2,2.93]
[1755702432560,523.0,184.41,184.16,119.51044307]
[1755702432561,525.0,184.41,184.34,5.4244]
[1755702432855,10.834,184.6,184.28,2.93]
[1755702432856,157.9,184.47,184.28,2.93]
[1755702433054,2.0,184.46,184.31,2.93]
[1755702433458,2.0,184.46,184.23,364.98]
[1755702433650,2.0,184.45,184.24,2.93]
[1755702434056,2.0,184.43,184.24,2.93]
[1755702434258,2.0,184.4,184.18,2.93]
[1755702434760,2.0,184.38,184.18,2.93]
[1755702435054,7.93627562,184.35,184.18,2.93]
[1755702435352,2.0,184.34,184.18,2.93]
[1755702436553,2.0,184.33,184.16,119.51044307]
[1755702436756,2.0,184.33,184.13,2.93]
[1755702436954,7.93627562,184.29,184.13,2.93]
[1755702437153,2.0,184.28,184.05,2.93]
[1755702437358,2.0,184.23,184.05,2.93]
[1755702437651,2.0,184.23,184.01,523.4]
[1755702437652,2.0,184.28,184.1,2.93]
[1755702438055,0.94533107,184.23,184.1,2.93]
[1755702438358,0.94533107,184.23,184.09,7.93627562]
[1755702438359,2.0,184.24,184.05,2.93]
[1755702438560,364.84,184.34,184.0,7.93627562]
[1755702438561,16.52,184.3,184.0,7.93627562]
[1755702438761,2.0,184.25,184.01,2.93]
[1755702439051,7.93627562,184.21,184.01,2.93]
[1755702439253,2.0,184.2,184.01,2.93]
[1755702439454,2.0,184.2,183.96,7.93627562]
[1755702439455,7.93627562,184.16,183.96,2.93]
[1755702439654,2.0,184.14,183.96,2.93]
[1755702439856,159.04,184.15,183.81,1928.46]